Workbook

Sheet 1
A1: 附件1：
A2: 2025年恩平市一般公共预算收支调整情况表
E3: 编制日期：2025年7月1日 | L3: 单位：万元
A4: 收入 | E4: 支出
A5: 项目 | B5: 年初预算数 | C5: 调整数 | D5: 调整后预算数 | E5: 项目 | F5: 年初预算数 | G5: 调整数 | L5: 调整后预算数 | N5: 调整变化 | P5: 压减一般性支出
G6: 合计 | H6: 本级项目调整 | K6: 上年结转资金调整
H7: 小计 | I7: 新增支出 | J7: 调减支出 | N7: 新增支出 | O7: 调减支出
A8: 税收收入 | B8: 78,000 | D8: =B8+C8 -> 78,000 | E8: 一、一般公共服务支出 | F8: 46,743 | G8: =H8+K8 -> 2,764 | H8: =I8+J8 -> 2,764 | I8: 2,923 | J8: -159 | L8: =F8+G8 -> 49,507
A9: 非税收入 | B9: 70,438 | D9: =B9+C9 -> 70,438 | E9: 二、国防支出 | F9: 333 | G9: =H9+K9 -> 0 | H9: 0 | L9: =F9+G9 -> 333
A10: 一般公共预算收入合计 | B10: =B8+B9 -> 148,438 | C10: =C8+C9 -> 0 | D10: =B10+C10 -> 148,438 | E10: 三、公共安全支出 | F10: 20,918 | G10: 366 | H10: 366 | I10: 399 | J10: -33 | L10: 21,284
E11: 四、教育支出 | F11: 84,721 | G11: =H11+K11 -> 354 | H11: 354 | I11: 354 | L11: 85,075
E12: 五、科学技术支出 | F12: 7,167 | G12: 40 | H12: 40 | I12: 48 | J12: -8 | L12: 7,207
E13: 六、文化旅游体育与传媒支出 | F13: 6,306 | G13: 228 | H13: 228 | I13: 743 | J13: -515 | L13: 6,534
E14: 七、社会保障和就业支出 | F14: 94,680 | G14: 43 | H14: 0 | I14: 93 | J14: -93 | K14: 43 | L14: 94,723
E15: 八、卫生健康支出 | F15: 60,410 | G15: 767 | H15: 767 | I15: 767 | L15: 61,177
E16: 九、节能环保支出 | F16: 4,035 | G16: 333 | H16: 212 | I16: 212 | K16: 121 | L16: 4,368
E17: 十、城乡社区支出 | F17: 7,439 | G17: -2 | H17: =I17+J17 -> -2 | J17: -2 | L17: 7,437
E18: 十一、农林水支出 | F18: 56,148 | G18: 500 | H18: 500 | I18: 539 | J18: -39 | L18: 56,648
E19: 十二、交通运输支出 | F19: 12,588 | G19: 0 | H19: 0 | L19: 12,588
E20: 十三、资源勘探信息等支出 | F20: 955 | G20: 0 | H20: 0 | L20: 955
E21: 十四、商业服务业等支出 | F21: 709 | G21: 236 | H21: 200 | I21: 200 | K21: 36 | L21: 945
E22: 十五、金融支出 | F22: 175 | G22: 0 | H22: 0 | L22: 175
E23: 十六、自然资源海洋气象支出 | F23: 4,915 | G23: 0 | H23: 0 | L23: 4,915
E24: 十七、住房保障支出 | F24: 8,314 | G24: 0 | H24: 0 | L24: 8,314
E25: 十八、粮油物资储备支出 | F25: 2,332 | G25: 0 | H25: 0 | L25: 2,332
E26: 十九、灾害防治及应急管理支出 | F26: 3,964 | G26: 0 | H26: 0 | L26: 3,964
E27: 二十、债务付息支出 | F27: 2,185 | G27: 0 | H27: =I27+J27 -> 0 | L27: 2,185
E28: 二十一、债务发行费用支出 | F28: 0 | G28: 2 | H28: 2 | I28: 2 | L28: 2
E29: 二十二、其他支出 | F29: 16,987 | G29: -4,500 | H29: -4,500 | I29: 500 | J29: -5,000 | L29: 12,487
E30: 二十三、预备费 | F30: 3,330 | G30: 0 | H30: 0 | L30: 3,330
E31: 一般公共预算支出合计 | F31: =SUM(F8:F30) -> 445,355 | G31: =SUM(G8:G30) -> 1,131 | H31: =SUM(H8:H30) -> 931 | I31: =SUM(I8:I30) -> 6,780 | J31: =SUM(J8:J30) -> -5,849 | K31: 200 | L31: 446,486 | N31: =SUM(N8:N30) -> 0 | O31: =SUM(O8:O30) -> 0 | P31: =SUM(P8:P30) -> 0
A32: 转移性收入 | B32: =B33+B34+B35+B36+B38+B37+B40+B39 -> 313,347 | C32: =C33+C34+C35+C36+C38+C37+C40+C39 -> 1,131 | D32: =D33+D34+D35+D36+D38+D37+D40+D39 -> 314,478 | E32: 转移性支出 | F32: =F33+F34+F35+F36 -> 16,430 | G32: 0 | H32: 0 | I32: 0 | J32: 0 | K32: 0 | L32: 16,430
A33: 税收返还收入 | B33: 13,690 | D33: =B33+C33 -> 13,690 | E33: 体制上解支出 | F33: 3,484 | G33: =H33+K33 -> 0 | H33: =I33+J33 -> 0 | L33: =F33+G33 -> 3,484
A34: 财力性补助收入 | B34: 120,000 | D34: =B34+C34 -> 120,000 | E34: 专项上解支出 | F34: 12,629 | G34: =H34+K34 -> 0 | H34: =I34+J34 -> 0 | L34: =F34+G34 -> 12,629
A35: 专项补助收入 | B35: 93,232 | D35: 93,232 | E35: 调出资金 | G35: =H35+K35 -> 0 | H35: =I35+J35 -> 0 | L35: =F35+G35 -> 0
A36: 上年结转收入 | B36: 13,065 | C36: 200 | D36: 13,265 | E36: 地方政府一般债券还本支出 | F36: 317 | G36: =H36+K36 -> 0 | H36: =I36+J36 -> 0 | L36: =F36+G36 -> 317
A37: 地方政府一般债务转贷收入 | B37: 2,000 | D37: 2,000
A38: 调入资金 | B38: 25,777 | C38: -5,610 | D38: 20,167
A39: 动用预算稳定调节基金 | B39: 21,583 | D39: 21,583
A40: 区域间转移性收入 | B40: 24,000 | C40: 6,541 | D40: 30,541
A41: 收入总计 | B41: =B10+B32 -> 461,785 | C41: =C10+C32 -> 1,131 | D41: =D10+D32 -> 462,916 | E41: 支出总计 | F41: =F31+F32 -> 461,785 | G41: =H41+K41 -> 1,131 | H41: 931 | I41: 6,780 | J41: -5,849 | K41: 200 | L41: =L31+L32 -> 462,916
E42: 结余 | F42: =B41-F41 -> 0 | L42: =D41-L41 -> 0

Sheet 2
A1: 附件2：
A2: 2025年恩平市一般公共预算支出本级项目调整计划
G3: 单位：万元
A4: 序号 | B4: 科目(范例：2010301行政运行） | C4: 预算单位 | D4: 项目 | E4: 预算数 | F4: 调整数 | G4: 调整后预算数 | H4: 备注
A5: 1 | B5: 2010399其他政府办公厅（室）及相关机构事务支出 | C5: 恩平市人民政府行政服务中心 | D5: 12345政务服务便民热线运营费 | E5: 13.00 | F5: 16.00 | G5: =E5+F5 -> 29.00 | H5: 将政府网运转费与政府服务热线运转费16万调剂到12345政务服务便民运营费项目使用 | I5: 行政政法股
A6: 2 | B6: 2010399其他政府办公厅（室）及相关机构事务支出 | C6: 恩平市人民政府行政服务中心 | D6: 政府网运转费与政府服务热线运转费 | E6: 16.00 | F6: -16.00 | G6: 0.00 | H6: 根据实际使用情况，调剂至“12345政务服务便民热线运营费”项目。 | I6: 行政政法股
A7: 3 | B7: 2010399其他政府办公厅（室）及相关机构事务支出 | C7: 预算国库股代编 | D7: 镇级统筹运转经费 | E7: 3000.00 | F7: 2500.00 | G7: 5,500.00 | H7: 结合镇级运转保障情况增加预算。 | I7: 预算国库股
A8: 4 | B8: 2010499其他发展与改革事务支出 | C8: 恩平市发展和改革局 | D8: 恩平市集中供热规划方案咨询费用 | E8: 0.00 | F8: 30.00 | G8: 30.00 | H8: 恩府办函〔2025〕225号关于同意恩平市集中供热规划方案咨询费用的复函。 | I8: 综合股
A9: 5 | B9: 2010499其他发展与改革事务支出 | C9: 恩平市发展和改革局 | D9: 人防、海防、国防专项资金 | E9: 50.00 | F9: -10.00 | G9: 40.00 | H9: 调剂至政府性基金的“咨询服务、风险评审、信用体系建设工作经费”项目。 | I9: 综合股
A10: 6 | B10: 2010505专项统计业务 | C10: 恩平市统计局 | D10: 第五次经济普查经费 | E10: 10.00 | F10: 15.47 | G10: 25.47 | H10: 恩府办函〔2025〕405号关于同意第五次全国经济普查资料开发经费纳入2025年年中预算调整安排的复函增加预算10万元，从联网直报统计专员专项资金调剂5.47万元。 | I10: 综合股
A11: 7 | B11: 2010505专项统计业务 | C11: 恩平市统计局 | D11: 联网直报单位统计专员通讯补助专项资金 | E11: 54.00 | F11: -5.47 | G11: 48.53 | H11: 调剂5.47万元至第五次经济普查经费 | I11: 综合股
A12: 8 | B12: 2010508统计抽样调查 | C12: 恩平市统计局 | D12: 统计局行业调查服务采购经费 | E12: 0.00 | F12: 9.50 | G12: 9.50 | H12: 恩府办函〔2025〕310号关于同意支持市统计局行业调查服务采购经费的复函。 | I12: 综合股
A13: 9 | B13: 2010899其他审计事务支出 | C13: 恩平市审计局 | D13: 业务委托费 | E13: 30.00 | F13: 28.00 | G13: 58.00 | H13: 恩府办函〔2025〕376号关于同意增拨采购中介机构服务费用预算的复函 | I13: 行政政法股
A14: 10 | B14: 2012999其他群众团体事务支出 | C14: 恩平市归国华侨联合会 | D14: 华侨华人法律服务中心工作经费 | E14: 2.50 | F14: -0.30 | G14: 2.20 | H14: 调剂到侨联工作经费 | I14: 行政政法股
A15: 11 | B15: 2012999其他群众团体事务支出 | C15: 恩平市归国华侨联合会 | D15: 侨团社团接待费 | E15: 6.00 | F15: -3.00 | G15: 3.00 | H15: 调剂到侨联工作经费 | I15: 行政政法股
A16: 12 | B16: 2012999其他群众团体事务支出 | C16: 恩平市归国华侨联合会 | D16: 侨联工作经费 | E16: 17.00 | F16: 3.30 | G16: 20.30 | H16: 从侨团社团接待费调剂3万元，从华侨华人法律服务中心工作经费调剂0.3万元 | I16: 行政政法股
A17: 13 | B17: 2013199其他党委办公厅（室）及相关机构事务支出 | C17: 中共恩平市委政法委 | D17: 维稳经费 | E17: 25.00 | F17: 20.00 | G17: 45.00 | H17: 从扫黑除恶、人民防线、市域治理中调整增加 | I17: 行政政法股
A18: 14 | B18: 2013199其他党委办公厅（室）及相关机构事务支出 | C18: 中共恩平市委政法委 | D18: 扫黑除恶专项经费(含举报奖励工作经费、反有组织犯罪工作经费) | E18: 32.00 | F18: -10.00 | G18: 22.00 | H18: 调整到维稳经费 | I18: 行政政法股
A19: 15 | B19: 2013199其他党委办公厅（室）及相关机构事务支出 | C19: 中共恩平市委政法委 | D19: 人民防线工作经费 | E19: 5.00 | F19: -5.00 | G19: 0.00 | H19: 调整到维稳经费 | I19: 行政政法股
A20: 16 | B20: 2013199其他党委办公厅（室）及相关机构事务支出 | C20: 中共恩平市委政法委 | D20: 市域治理现代化试点工作经费 | E20: 10.00 | F20: -5.00 | G20: 5.00 | H20: 调整到维稳经费 | I20: 行政政法股
A21: 17 | B21: 2013199其他党委办公厅（室）及相关机构事务支出 | C21: 恩平市委市政府机关事务服务中心 | D21: 业务接待支出 | E21: 293.36 | F21: -83.36 | G21: 210.00 | H21: 调剂83.36万元到饭堂经费 | I21: 行政政法股
A22: 18 | B22: 2013199其他党委办公厅（室）及相关机构事务支出 | C22: 恩平市委市政府机关事务服务中心 | D22: 政府机关饭堂经费 | E22: 160.00 | F22: 103.36 | G22: 263.36 | H22: 从接待费调剂83.36万元，从基金修缮费调剂20万元，合计调增103.36万元 | I22: 行政政法股
A23: 19 | B23: 2013199其他党委办公厅（室）及相关机构事务支出 | C23: 恩平市委市政府机关事务服务中心 | D23: 解决巡视工作后勤保障工作经费（恩府办函〔2025〕391号) | E23: 0.00 | F23: 94.50 | G23: 94.50 | H23: 恩府办函〔2025〕391号关于解决市委市政府机关事务服务中心巡视工作后勤保障工作经费的复函 | I23: 行政政法股
A24: 20 | B24: 2013199其他党委办公厅（室）及相关机构事务支出 | C24: 中共共产党恩平市委员会办公室 | D24: 2025年全市涉密办公设备采购警方（恩府办函〔2025〕420号) | E24: 0.00 | F24: 37.30 | G24: 37.30 | H24: 恩府办函〔2025〕420号关于2025年全市涉密办公设备采购经费的复函 | I24: 行政政法股
A25: 21 | B25: 2013299其他组织事务支出 | C25: 恩平市委组织部 | D25: “七一”活动工作经费 | E25: 5.00 | F25: -5.00 | G25: 0.00 | H25: 调剂到干部及支书培训费，用于相关培训。 | I25: 行政政法股
A26: 22 | B26: 2013499其他统战事务支出 | C26: 中国恩平市委统战部 | D26: 港澳台专项工作经费 | E26: 20.00 | F26: 50.00 | G26: 70.00 | H26: 恩府办函〔2025〕421号关于增拨港澳专项工作经费的复函 | I26: 行政政法股
A27: 23 | B27: 2014004信访业务 | C27: 恩平市信访局 | D27: 特殊疑难信访问题专项资金 | E27: 15.00 | F27: -10.00 | G27: 5.00 | H27: 将10万元调入信访维稳工作经费（含应急劝返工作经费）。 | I27: 行政政法股
A28: 24 | B28: 2014004信访业务 | C28: 恩平市信访局 | D28: 信访维稳工作经费（含应急劝返工作经费） | E28: 119.00 | F28: 10.00 | G28: 129.00 | H28: 从“特殊疑难信访问题专项资金”调剂10万元。 由于今年下半年重要时间节点较多（如纪念中国人民抗日战争暨世界反法西斯战争胜利80周年等），开展信访安全保障工作任务较重，所需资金较大。 | I28: 行政政法股
A29: 25 | B29: 2014004信访业务 | C29: 恩平市信访局 | D29: 多功能室改造 | E29: 6.00 | F29: -6.00 | G29: 0.00 | H29: 将6万元调入档案室整改（含档案整理）。 | I29: 行政政法股
A30: 26 | B30: 2014004信访业务 | C30: 恩平市信访局 | D30: 档案室整改（含档案整理） | E30: 0.00 | F30: 6.00 | G30: 6.00 | H30: 从“多功能室改造”调剂6万元。 根据实际工作需要将多功能室改造项目变更为档案室整改（含档案整理）。 | I30: 行政政法股
A31: 27 | B31: 2040299其他公安支出 | C31: 恩平市公安局 | D31: 江财M〔2019〕39号2020年社会治理专项资金（圣堂中队） | E31: 0.00 | F31: 4.46 | G31: 4.46 | H31: 原收回不结转，因实际需要现重新下达 | I31: 行政政法股
A32: 28 | B32: 2040299其他公安支出 | C32: 恩平市公安局 | D32: 江财M〔2021〕48号转移支付森林大队经费 | E32: 0.00 | F32: 12.00 | G32: 12.00 | H32: 原收回不结转，因实际需要现重新下达 | I32: 行政政法股
A33: 29 | B33: 2040299其他公安支出 | C33: 恩平市公安局 | D33: 非税征收工作经费 | E33: 400.00 | F33: 350.00 | G33: 750.00 | H33: 1、从公安局治安监控和信息化基础项目调整150万元，系统工程建设及设备购置费调整150万元;2、另申请增加非税征收工作经费200万元；3、政府批复恩府办函〔2025〕36号禁毒和反诈宣传工作专项经费30万元、恩府办函〔2025〕5号2024恩平市温泉马拉松安保维稳专项经费20万元。 结合财力统筹安排350万元。 | I33: 行政政法股
A34: 30 | B34: 2040899其他强制隔离戒毒支出 | C34: 恩平市拘留所 | D34: 医疗费 | E34: 3.00 | F34: -3.00 | G34: 0.00 | H34: 将医疗费3万元调整到运转费 | I34: 行政政法股
A35: 31 | B35: 2040899其他强制隔离戒毒支出 | C35: 恩平市拘留所 | D35: 拘留所辅警及警务人员工资补贴 | E35: 200.00 | F35: -30.00 | G35: 170.00 | H35: 将辅警及警务人员工资补贴30万元调整到运转费 | I35: 行政政法股
A36: 32 | B36: 2040899其他强制隔离戒毒支出 | C36: 恩平市拘留所 | D36: 运转费 | E36: 100.00 | F36: 33.00 | G36: 133.00 | H36: 从医疗费、辅警及警备人员工资补贴中调整增加 | I36: 行政政法股
A37: 33 | B37: 2050302中等职业教育 | C37: 恩平市教育局 | D37: 江财教[2022]75号现代职业教育质量提升计划中央资金中等职业学校奖补资金 | E37: 0.00 | F37: 32.40 | G37: =E37+F37 -> 32.40 | H37: 因项目已开展，由不结转转为收回后重新安排 | I37: 教科文
A38: 34 | B38: 2050701特殊学校教育 | C38: 恩平市教育局 | D38: 义务教育阶段特殊教育学校和随班就读残疾学生生均公用经费补助-随班就读、送教上门学生 | E38: 19.08 | F38: 3.18 | G38: 22.26 | H38: 省、江门、我市十件民生实事要求提高残疾学生生均公用经费标准。由原来6000元/生/年调整到7000元/生/年。 三保项目。随班就读、送教上门特殊学生159人，原标准为6000元/生/年，分担比例省：县市=8:2。本级缺口3.18万元。 | I38: 教科文
A39: 35 | B39: 2050802干部教育 | C39: 中国共产党恩平市委员会党校 | D39: 人员经费 | E39: 0.00 | F39: 318.58 | G39: 318.58 | H39: 年初预算少统计该项经费，纳入预算调整。 | I39: 行政政法股
A40: 36 | B40: 2069999其他科学技术支出 | C40: 恩平市委组织部 | D40: 村（社区）基层干部学历提高班费用 | E40: 100.00 | F40: 28.86 | G40: 128.86 | H40: 从村长助理工资补贴调剂27万元，从村长助理工作经费调剂1.86万元。 | I40: 行政政法股
A41: 37 | B41: 2069999其他科学技术支出 | C41: 恩平市委组织部 | D41: 干部及支书培训费 | E41: 100.00 | F41: 19.09 | G41: 119.09 | H41: 从村长助理工作经费调剂1.94万元、“七一”活动工作经费调剂5万元、党代表工作经费调剂6万元、现代远程教育系统经费调剂2.5万元、社区党组织书记绩效奖励经费调剂0.28万元、村党组织书记绩效奖励经费调剂0.38万元、农村党员暖心安居屋建设经费调剂3万元 | I41: 行政政法股
A42: 38 | B42: 2069999其他科学技术支出 | C42: 恩平市委组织部 | D42: 党代表工作经费 | E42: 11.00 | F42: -6.00 | G42: 5.00 | H42: 调剂到干部及支书培训费，用于相关培训。 | I42: 行政政法股
A43: 39 | B43: 2069999其他科学技术支出 | C43: 恩平市委组织部 | D43: 现代远程教育系统经费 | E43: 2.50 | F43: -2.50 | G43: 0.00 | H43: 调剂到干部及支书培训费，用于相关培训。 | I43: 行政政法股
A44: 40 | B44: 2070199其他文化和旅游支出 | C44: 恩平市文化广电旅游体育局 | D44: 农村文体协管员补助经费（镇级） | E44: 3.63 | F44: 1.15 | G44: 4.78 | H44: 由于账号问题于2024年底发生退款，需在2025年支付 | I44: 教科文
A45: 41 | B45: 2070199其他文化和旅游支出 | C45: 恩平市文化广电旅游体育局 | D45: 农村文体协管员补助经费 | E45: 3.63 | F45: 1.15 | G45: 4.78 | H45: 由于账号问题于2024年底发生退款，需在2025年支付 | I45: 教科文
A46: 42 | B46: 2070199其他文化和旅游支出 | C46: 恩平市文化广电旅游体育局 | D46: 恩平市各镇（街）文化站免费开放经费 | E46: 25.03 | F46: 6.83 | G46: 31.85 | H46: 由于账号问题于2024年底发生退款，需在2025年支付 | I46: 教科文
A47: 43 | B47: 2070199其他文化和旅游支出 | C47: 恩平市博物馆 | D47: 江财教【2022】69号关于下达2022年省财政补齐公共文化财政支出短板奖补资金（基础性补助）的通知 | E47: 0.00 | F47: 19.04 | G47: 19.04 | H47: 因项目已开展，由不结转转为收回后重新安排 | I47: 教科文
A48: 44 | B48: 2070199其他文化和旅游支出 | C48: 恩平市图书馆 | D48: 购书经费（含报刊、杂志等经费）专项资金 | E48: 30.00 | F48: -15.00 | G48: 15.00 | H48: 从调整购书经费（含报刊、杂志等经费）专项资金15万元至粤财科教〔2023〕207号 | I48: 教科文
A49: 45 | B49: 2070199其他文化和旅游支出 | C49: 恩平市图书馆 | D49: 江财教〔2022〕68号 公共文化旅游服务 | E49: 0.00 | F49: 6.00 | G49: 6.00 | H49: 从购书经费（含报刊、杂志等经费）专项资金调整6万元至江财教〔2022〕68号 、从购书经费（含报刊、杂志等经费）专项资金调整9万元至江财教〔2022〕53号 | I49: 教科文
A50: 46 | B50: 2070199其他文化和旅游支出 | C50: 恩平市图书馆 | D50: 江财教〔2022〕53号 公共文化旅游服务 | E50: 0.00 | F50: 9.00 | G50: 9.00 | H50: 从购书经费（含报刊、杂志等经费）专项资金调整9万元至江财教〔2022〕53号 | I50: 教科文
A51: 47 | B51: 2070307体育场馆 | C51: 恩平市城市管理和综合执法局 | D51: 江财教[2023]44号恩平市全民健身设施补短板工程-恩平市体育公园建设项目 | E51: 0.00 | F51: 700.00 | G51: 700.00 | H51: 中央资金沉淀，被国家列为问题清单项目。该资金年初预算定为收回不结转，现改为收回重新安排。 | I51: 经建股
A52: 48 | B52: 2070808广播电视事业 | C52: 恩平市融媒体中心 | D52: 市融媒体中心财政补助资金 | E52: 2,400.00 | F52: -500.00 | G52: 1,900.00 | H52: 市融媒体中心已于2024年12月31日完成有线电视网络整合改革，并完成了网络业务移交。截至6月底，此项经费已拨付805.18万元。 网络中心上划后，市政府暂未通过批复新的“市融媒体中心财政补助方案”，建议先调减500万元。 | I52: 教科文
A53: 49 | B53: 2080802伤残抚恤 | C53: 恩平市退役军人事务局 | D53: 非在职残疾军人生活补助 | E53: 565.00 | F53: -65.00 | G53: 500.00 | H53: 调剂至“非在职残疾军人生活补助”项目。 | I53: 社保股
A54: 50 | B54: 2080899其他优抚支出 | C54: 恩平市退役军人事务局 | D54: 参战退役人员生活补助 | E54: 406.40 | F54: 65.00 | G54: =E54+F54 -> 471.40 | H54: 根据实际使用需求，由“非在职残疾军人生活补助”调剂至该项目。 | I54: 社保股
A55: 51 | B55: 2080899其他优抚支出 | C55: 恩平市退役军人事务局 | D55: 各镇定恤定补人员生活补助 | E55: 461.10 | F55: -3.10 | G55: 458.00 | H55: 调剂至“退役士兵社保接续补缴专项经费”和“优抚对象廉租房补助” | I55: 社保股
A56: 52 | B56: 2080899其他优抚支出 | C56: 恩平市退役军人事务局 | D56: 退役士兵社保接续补缴专项经费 | E56: 3.00 | F56: 3.00 | G56: =E56+F56 -> 6.00 | H56: 由“各镇定恤定补人员生活补助”调剂 | I56: 社保股
A57: 53 | B57: 2080899其他优抚支出 | C57: 恩平市退役军人事务局 | D57: 优抚对象廉租房补助 | E57: 1.50 | F57: 0.10 | G57: =E57+F57 -> 1.60 | H57: 由“各镇定恤定补人员生活补助”调剂 | I57: 社保股
A58: 54 | B58: 2080899其他优抚支出 | C58: 恩平市退役军人事务局 | D58: 复退伍军人精神病医疗费 | E58: 60.00 | F58: -20.00 | G58: 40.00 | H58: 调剂至“优抚对象医疗补助” | I58: 社保股
A59: 55 | B59: 2080899其他优抚支出 | C59: 恩平市退役军人事务局 | D59: 优抚对象医疗补助 | E59: 110.00 | F59: 20.00 | G59: 130.00 | H59: 由“复退伍军人精神病医疗费”调剂 | I59: 社保股
A60: 56 | B60: 2081199其他残疾人事业支出 | C60: 恩平市残疾人联合会 | D60: 残疾人四居服务 | E60: 44.90 | F60: -5.00 | G60: 39.90 | H60: 调剂至“残疾人康复项目建设” | I60: 社保股
A61: 57 | B61: 2081199其他残疾人事业支出 | C61: 恩平市残疾人联合会 | D61: 残疾人康复项目建设 | E61: 34.50 | F61: 5.00 | G61: 39.50 | H61: 由“残疾人四居服务”调剂 | I61: 社保股
A62: 58 | B62: 2100410突发公共卫生事件应急处置 | C62: 恩平市卫生健康局 | D62: 疫情防控专项经费 | E62: 1,000.00 | F62: 766.90 | G62: 1,766.90 | H62: 根据实际需要增加支出安排。 | I62: 社保股
A63: 59 | B63: 2110199其他环境保护管理事务支出 | C63: 江门市生态环境局恩平分局 | D63: 恩平市镇级环保巡查补助经费 | E63: 693.45 | F63: 212.00 | G63: 905.45 | H63: 2025年镇街巡查队已开展，依据《关于印发2024年恩平市镇级环保巡查工作实施方案的复函》（恩府办函〔2024〕279号），每年度安排资金414万元。原指标693.45万元，用于2023-2024年经费，目前已全部支出。 | I63: 农业股
A64: 60 | B64: 2120199其他城乡社区管理事务 | C64: 恩平市住房和城乡建设局 | D64: 恩平市政府投资工程建设管理中心业务管理费 | E64: 8.00 | F64: -2.00 | G64: 6.00 | H64: 在年初编制部门预算时，没有按一般性支出压减，现按规定压减项目指标2万元，压减后该项目预算指标为6万元。 | I64: 经建股
A65: 61 | B65: 2129999其他城乡社区支出 | C65: 恩平市委组织部 | D65: 社区党组织书记绩效奖励经费 | E65: 1.68 | F65: -0.28 | G65: 1.40 | H65: 调剂到干部及支书培训费，用于相关培训。 | I65: 行政政法股
A66: 62 | B66: 2130152对高校毕业生到基层任职补助 | C66: 恩平市委组织部 | D66: 村长助理工资补贴 | E66: 59.43 | F66: -27.00 | G66: 32.43 | H66: 调剂到村（社区）基层干部学历提高班费用 | I66: 行政政法股
A67: 63 | B67: 2130152对高校毕业生到基层任职补助 | C67: 恩平市委组织部 | D67: 村长助理工作经费 | E67: 3.80 | F67: -3.80 | G67: 0.00 | H67: 1.86万元调剂到村（社区）基层干部学历提高班费用，1.94万元调剂到干部及支书培训费 | I67: 行政政法股
A68: 64 | B68: 2130199其他农业农村支出 | C68: 恩平市农业农村局 | D68: 中南活禽批发市场检疫人员经费 | E68: 42.40 | F68: 50.35 | G68: 92.75 | H68: 中南活禽批发市场集中屠宰点驻场动物检疫人员工资足额按时发放，禽类产品质量安全不断提高要求。目前只支付到2024年第一季度，需追加预算安排。 | I68: 农业股
A69: 65 | B69: 2130205森林资源培育 | C69: 恩平市林业局 | D69: 安排2024年中央林业草原转移支付资金 | E69: 0.00 | F69: 184.00 | G69: =E69+F69 -> 184.00 | H69: 粤财资环[2025]17号,收回后重新安排资金。
A70: 66 | B70: 2130299其他林业和草原支出 | C70: 恩平市林业局 | D70: 扩大生态公益林损失性补助 | E70: 700.00 | F70: 200.00 | G70: 900.00 | H70: 根据实际需求增加预算200万元兑付生态公益类所有者、管护者生态公益林效益补偿。 | I70: 农业股
A71: 67 | B71: 2130303机关服务 | C71: 恩平市锦江源大型灌区工程运管中心 | D71: 日常公用支出 | E71: 5.64 | F71: 4.94 | G71: 10.58 | H71: 2024年1月24日，根据恩机编〔2024〕1号文件恩平市锦江源大型灌区工程运管中心批准成立，核定编制33名，现有在职在编人员4人。2024年编报2025年预算计划时，按实有的编制人数编报预算计划，2025年为落实配套恩平市锦江源大型灌区的创建管理工作，通过公开招聘新招录7名编制人员，为确保运管中心下半年工作的正常运转，需要调整2025年下半年公用经费支出计划，增加4.94万元。 | I71: 农业股
A72: 68 | B72: 2130316农村水利 | C72: 恩平市水利局 | D72: 锦江灌区续建配套与节水建造工程 | E72: 100.00 | F72: -4.94 | G72: 95.06 | H72: 调剂到恩平市锦江源大型灌区工程运管中心用于日常公用支出。
A73: 69 | B73: 2130305水利工程建设 | C73: 恩平市水利局 | D73: 水利工程配套项目 | E73: 100.00 | F73: 100.00 | G73: 200.00 | H73: 通过完成水利工程配套项目并完成年末项目总体的90%，提升水利设施运行管理水平。受益群众满意度达到≥90%。通过项目的实施，恢复电站周围生态环境。 | I73: 农业股
A74: 70 | B74: 2130599其他巩固脱贫攻坚成果衔接乡村振兴支出 | C74: 恩平市委组织部 | D74: 农村党员暖心安居屋建设经费 | E74: 4.50 | F74: -3.00 | G74: 1.50 | H74: 调剂到干部及支书培训费，用于相关培训。 | I74: 行政政法股
A75: 71 | B75: 2130705对村民委员会和村党支部的补助 | C75: 恩平市委组织部 | D75: 村党组织书记绩效奖励经费 | E75: 10.57 | F75: -0.38 | G75: 10.19 | H75: 调剂到干部及支书培训费，用于相关培训。 | I75: 行政政法股
A76: 72 | B76: 2169999其他商业服务业等支出 | C76: 恩平市供销合作社联合社 | D76: 恩平市“社村”联合会工作经费 | E76: 0.00 | F76: 200.00 | G76: 200.00 | H76: 根据《恩平市“社村”合作助力新型农村集体经济试点实施方案》（恩府办〔2024〕74号），安排2025年社村联合会经费支出。 | I76: 工贸股
A77: 73 | B77: 2290201年初预留 | C77: 预算国库股 | D77: 预留编制新吸收人员工资及机关事业单位人员自然晋升工资 | E77: 15,000.00 | F77: -5,000.00 | G77: 10,000.00 | H77: 年初预算安排15,000万元，已使用4,753万元，根据实际使用情况，调减5,000万元。
A78: 74 | B78: 2299999其他支出 | C78: 预算国库股代编 | D78: 全市非税收入征管经费 | E78: 500.00 | F78: 500.00 | G78: 1,000.00 | H78: 按照收支两条线管理办法，根据实际需求增加预算。 | I78: 预算国库股
A79: 75 | B79: 2330301地方政府一般债务发行费用支出 | C79: 政府债务管理股 | D79: 地方政府一般债务发行费用支出 | E79: 0.33 | F79: 1.70 | G79: 2.03 | H79: 粤财债﹝2025﹞8号广东省财政厅关于下达2025年1月地方政府新增债券转贷资金的通知 2025年到期一般债务发行费20252.74元，其中还本付息服务费为3292.74，发行费为16960元 | I79: 债务股
A80: 合计 | E80: =SUM(E5:E79) -> 27,202.91 | F80: =SUM(F5:F79) -> 931.03 | G80: =SUM(G5:G79) -> 28,133.94

Sheet 3
A1: 附件3：
A2: 2025年恩平市政府性基金预算收支调整情况表
E3: 编制日期：2025年7月1日 | L3: 单位：万元
A4: 收入 | E4: 支出
A5: 项目 | B5: 年初预算数 （本级收入） | C5: 调整数 | D5: 调整后预算数 | E5: 项目 | F5: 年初预算数 | G5: 调整数 | L5: 调整后预算数
G6: 合计 | H6: 本级项目调整 | K6: 上年结转资金调整
H7: 小计 | I7: 新增支出 | J7: 调减支出
A8: 文化体育与传媒 | D8: =B8+C8 -> 0 | E8: 文化体育与传媒支出 | F8: =SUM(F9) -> 24 | G8: =H8+K8 -> 0 | H8: =H9 -> 0 | I8: =I9 -> 0 | J8: =J9 -> 0 | K8: =K9 -> 0 | L8: =F8+G8 -> 24
A9: 国家电影事业发展专项资金收入 | D9: =B9+C9 -> 0 | E9: 国家电影事业发展专项资金安排的支出 | F9: 24 | G9: =H9+K9 -> 0 | L9: =F9+G9 -> 24
A10: 社会保障和就业 | D10: 0 | E10: 社会保障和就业支出 | F10: =F11+F12 -> 0 | G10: 0 | H10: =H11+H12 -> 0 | I10: =I11+I12 -> 0 | J10: =J11+J12 -> 0 | K10: =K11+K12 -> 0 | L10: 0
A11: 大中型水库移民后期扶持基金收入 | D11: 0 | E11: 大中型水库移民后期扶持基金支出 | G11: 0 | L11: 0
A12: 小型水库移民扶助基金收入 | D12: 0 | E12: 小型水库移民扶助基金安排的支出 | G12: 0 | L12: 0
A13: 城乡社区事务 | B13: =B14+B15+B16+B17+B18 -> 102,100 | D13: =B13+C13 -> 102,100 | E13: 城乡社区支出 | F13: =SUM(F14:F18) -> 83,340 | G13: =H13+K13 -> 5,711 | H13: =H14+H15+H16+H17+H18 -> 5,610 | I13: =I14+I15+I16+I17+I18 -> 9,440 | J13: =J14+J15+J16+J17+J18 -> -3,830 | K13: =K14+K15+K16+K17+K18 -> 101 | L13: 89,051
A14: 国有土地使用权出让收入 | B14: 87,200 | D14: =B14 -> 87,200 | E14: 国有土地使用权出让收入安排的支出 | F14: 68,378 | G14: =H14+K14 -> 6,311 | H14: =I14+J14 -> 6,210 | I14: =5898+3542 -> 9,440 | J14: -3,230 | K14: 101 | L14: 74,689
A15: 国有土地收益基金收入 | B15: 5,000 | D15: =B15 -> 5,000 | E15: 国有土地收益基金安排的支出 | F15: 5,000 | G15: 0 | H15: =I15+J15 -> 0 | L15: 5,000
A16: 农业土地开发资金收入 | B16: 800 | D16: 800 | E16: 农业土地开发资金支出 | F16: 892 | G16: 0 | H16: =I16+J16 -> 0 | L16: 892
A17: 城市基础设施配套费收入 | B17: 6,000 | D17: 6,000 | E17: 城市基础设施配套费安排的支出 | F17: 5,870 | G17: =H17+K17 -> -200 | H17: =I17+J17 -> -200 | J17: -200 | L17: 5,670
A18: 污水处理费收入 | B18: 3,100 | D18: 3,100 | E18: 污水处理费安排的支出 | F18: 3,200 | G18: -400 | H18: =I18+J18 -> -400 | J18: -400 | L18: 2,800
A19: 农林水事务 | D19: 0 | E19: 农林水支出 | F19: =F20+F21+F22 -> 3,547 | G19: 0 | H19: =H20 -> 0 | I19: =I20 -> 0 | J19: =J20 -> 0 | K19: =K20 -> 0 | L19: 3,547
A20: 大中型水库库区基金收入 | D20: 0 | E20: 大中型水库库区基金支出 | F20: 3 | G20: 0 | L20: 3
E21: 大中型水库移民后期扶持基金支出 | F21: 3,505 | L21: 3,505
E22: 小型水库移民扶助基金支出 | F22: 39 | L22: 39
A23: 其他 | B23: =B24+B25 -> 530 | D23: =D24+D25 -> 530 | E23: 其他支出 | F23: =F24+F25+F26 -> 128,679 | G23: =H23+K23 -> 26,754 | H23: =SUM(H24:H26) -> 26,730 | I23: =SUM(I24:I26) -> 26,730 | J23: =SUM(J24:J26) -> 0 | K23: =SUM(K24:K26) -> 24 | L23: 155,433
A24: 彩票发行机构和彩票销售机构的业务费 | D24: 0 | E24: 其他政府性基金及对应专项债务收入安排的支出 | F24: 127,383 | G24: 26,500 | H24: =I24+J24 -> 26,500 | I24: 26,500 | L24: 153,883
A25: 彩票公益金收入 | B25: 530 | D25: 530 | E25: 彩票发行销售机构业务费安排的支出 | F25: 115 | G25: 4 | H25: =I25+J25 -> 0 | K25: 4 | L25: 119
E26: 彩票公益金安排的支出 | F26: 1,180 | G26: =H26+K26 -> 250 | H26: =I26+J26 -> 230 | I26: 230 | K26: 20 | L26: 1,430
L27: 0
A29: 本级收入合计 | B29: =B8+B10+B13+B19+B23 -> 102,630 | C29: =C8+C10+C13+C19+C23 -> 0 | D29: =D8+D10+D13+D19+D23 -> 102,630 | E29: 支出小计 | F29: =F8+F10+F13+F19+F23+F27 -> 215,590 | G29: 32,465 | H29: 32,340 | I29: 36,170 | J29: =J8+J10+J13+J19+J23+J27 -> -3,830 | K29: 125 | L29: =L8+L10+L13+L19+L23+L27 -> 248,055
A30: 转移性收入 | B30: =B31+B32+B33+B34 -> 133,160 | C30: =C31+C32+C33+C34 -> 26,625 | D30: =D31+D32+D33+D34 -> 159,785 | E30: 转移性支出 | F30: =F31+F32+F33 -> 19,216 | G30: =G31+G33+G32 -> -5,610 | H30: =H31+H33+H32 -> -5,610 | I30: =I31+I33+I32 -> 0 | J30: =J31+J33+J32 -> -5,610 | K30: 0 | L30: =L31+L33+L32 -> 13,606
A31: 专项补助收入 | B31: 2,624 | D31: =B31+C31 -> 2,624 | E31: 专项债务还本支出 | F31: 240 | G31: =H31+K31 -> 0 | H31: =I31+J31 -> 0 | L31: =F31+G31 -> 240
A32: 上年结转收入 | B32: 48,336 | C32: 125 | D32: =B32+C32 -> 48,461 | E32: 上解支出 | F32: 500 | G32: =H32+K32 -> 0 | H32: =I32+J32 -> 0 | L32: =F32+G32 -> 500
A33: 地方政府专项债务转贷收入 | B33: 82,200 | C33: 26,500 | D33: =B33+C33 -> 108,700 | E33: 调出资金 | F33: 18,476 | G33: =H33+K33 -> -5,610 | H33: =I33+J33 -> -5,610 | J33: -5,610 | L33: =F33+G33 -> 12,866
A36: 收入总计 | B36: =B29+B30 -> 235,790 | C36: =C29+C30 -> 26,625 | D36: =D29+D30 -> 262,415 | E36: 支出总计 | F36: =F29+F30 -> 234,806 | G36: =G29+G30 -> 26,855 | H36: =H29+H30 -> 26,730 | I36: =I29+I30 -> 36,170 | J36: =J29+J30 -> -9,440 | K36: 125 | L36: =L29+L30 -> 261,661
E37: 结余 | F37: =B36-F36 -> 984 | L37: =D36-L36 -> 754

Sheet 4
A1: 附件4：
A2: 2025年恩平市政府性基金预算支出本级项目调整计划
G3: 单位：万元
A4: 序号 | B4: 科目(范例：2137201移民补助） | C4: 预算单位 | D4: 项目 | E4: 预算数 | F4: 调整数 | G4: 调整后预算数 | H4: 备注
A5: 1 | B5: 2120801征地和拆迁补偿支出 | C5: 恩平市公安局 | D5: 公安局治安监控和信息化基础项目 | E5: 800.00 | F5: -150.00 | G5: =E5+F5 -> 650.00 | H5: 调整为非税工作经费（一般公共预算）
A6: 2 | B6: 2120801征地和拆迁补偿支出 | C6: 恩平市公安局 | D6: 系统工程建设及设备购置费 | E6: 800.00 | F6: -150.00 | G6: 650.00 | H6: 调整为非税工作经费（一般公共预算）
A7: 3 | B7: 2120801征地和拆迁补偿支出 | C7: 恩平市委市政府机关事务服务中心 | D7: 政府大院修缮及维护费 | E7: 130.00 | F7: -20.00 | G7: 110.00 | H7: 根据实际使用情况，调剂20万元到一般公共预算的饭堂经费项目
A8: 4 | B8: 2120801征地和拆迁补偿支出 | C8: 恩平市城市管理和综合执法局 | D8: 恩平市生活垃圾转运处理费 | E8: 700.00 | F8: 200.00 | G8: 900.00 | H8: 樟木坑生活垃圾渗沥液及地下水处置费，每月资金需求约105万元。该指标年初预算安排700万元，目前已使用643万元，剩余约57万元，预算缺口较大，无法维持樟木坑生活垃圾填埋场正常运转，结合财力状况暂追加约两月指标200万元。
A9: 5 | B9: 2120801征地和拆迁补偿支出 | C9: 恩平市城市管理和综合执法局 | D9: 环卫一体化和市场化项目专项资金 | E9: 5000.00 | F9: -300.00 | G9: 4700.00 | H9: 压减300万元，用于调剂指标到市城管局江财教[2023]44号恩平市全民健身设施补短板工程-恩平市体育公园建设项目
A10: 6 | B10: 2120801征地和拆迁补偿支出 | C10: 恩平市教育局 | D10: 促进民办普通本科高校发展扶持资金 | E10: 0.00 | F10: 2545.00 | G10: 2545.00 | H10: 北理珠恩平项目扶持奖补资金
A11: 7 | B11: 2120801征地和拆迁补偿支出 | D11: 市和镇征地拆迁补偿 | E11: 10000.00 | F11: -2545.00 | G11: 7455.00 | H11: 调剂至“促进民办普通本科高校发展扶持资金”用于北理珠恩平项目扶持奖补资金。
A12: 8 | B12: 2120801征地和拆迁补偿支出 | C12: 恩平市发展和改革局 | D12: 咨询服务、风险评审、信用体系建设工作经费 | E12: 100.00 | F12: 10.00 | G12: 110.00 | H12: 从人防、海防、国防专项资金调剂
A13: 9 | B13: 2120801征地和拆迁补偿支出 | C13: 恩平市林业局 | D13: 珠三角国家森林城市群建设 | E13: 80.00 | F13: -65.00 | G13: 15.00 | H13: 根据实际使用需求，调剂至“响水龙潭森林公园建设”
A14: 10 | B14: 2120801征地和拆迁补偿支出 | C14: 恩平市林业局 | D14: 响水龙潭森林公园建设 | E14: 100.00 | F14: 65.00 | G14: 165.00 | H14: 调整来自珠三角国家森林城市群建设
A15: 11 | B15: 2120801征地和拆迁补偿支出 | C15: 恩平市自然资源局 | D15: 耕地保护与修复 | E15: 1000.00 | F15: 655.86 | G15: 1655.86 | H15: 年初安排不足，根据项目开展实际情况增加预算。
A16: 12 | B16: 2120801征地和拆迁补偿支出 | C16: 恩平市自然资源局 | D16: 拆旧复垦项目 | E16: 4,000.00 | F16: 2290.00 | G16: 6290.00 | H16: 年初安排不足，根据项目开展实际情况增加预算。
A17: 13 | B17: 2120801征地和拆迁补偿支出 | C17: 恩平市农业农村局 | D17: 恩平市乡村绿化景观带实施方案编制服务项目 | E17: 0.00 | F17: 29.50 | G17: 29.50 | H17: 年初预算数为0，调增29.5万元。
A18: 14 | B18: 2120801征地和拆迁补偿支出 | C18: 恩平市水利局 | D18: 江门市潭江河流治理工程ppp项目（恩平段） | E18: 500.00 | F18: 100.00 | G18: 600.00 | H18: 2025年部门预算安排500万元，已支付500万元。还需增加1506.72万元支付可行性服务费和运营绩效服务费。 | I18: 农业股
A19: 15 | B19: 2120804农村基础设施建设支出 | C19: 恩平市住房和城乡建设局 | D19: 粤财建【2024】71号广东省财政厅关于下达第二批“百县千镇万村高质量发展工程”典型镇培育资金的通知 | E19: 3507.60 | F19: 2.52 | G19: 3510.12 | H19: 将原采取无纸实拨方式支付的2.52145万，不能在数字财政系统反映支出情况。由收款方退回资金后，重新在系统下指标支付。已完成支付。
A20: 16 | B20: 2121301城市公共设施 | C20: 恩平市城市管理和综合执法局 | D20: 市政工程资金 | E20: 3000.00 | F20: -200.00 | G20: 2800.00 | H20: 压减200万元，用于调剂指标到市城管局江财教[2023]44号恩平市全民健身设施补短板工程-恩平市体育公园建设项目
A21: 17 | B21: 2121401污水处理设施建设和运营 | C21: 恩平市城市管理和综合执法局 | D21: 城区污水厂一期运营费及建设费 | E21: 700.00 | F21: -200.00 | G21: 500.00 | H21: 压减200万元，用于调剂指标到市城管局恩平市生活垃圾转运处理费项目
A22: 18 | B22: 2121401污水处理设施建设和运营 | C22: 恩平市城市管理和综合执法局 | D22: 城区污水厂二期运营费及建设费 | E22: 650.00 | F22: -200.00 | G22: 450.00 | H22: 压减200万元，用于调剂指标到市城管局江财教[2023]44号恩平市全民健身设施补短板工程-恩平市体育公园建设项目
A23: 19 | B23: 2296003用于体育事业的彩票公益金支出 | C23: 恩平市文化广电旅游体育局 | D23: 第十五届全运会山地自行车赛事的办赛经费 | E23: 0.00 | F23: 230.00 | G23: 230.00 | H23: 山地自行车比赛项目由恩平市承办，比赛时间拟定于2025年11月20日，比赛地点在恩平市泉林小镇。通过审核、研究调减，做好本次山地自行车比赛赛事所需经费约393.7375万元。2025年安排230万元，剩余部分通过上级资金、社会捐赠解决。不足部分安排在2026年预算。
A24: 20 | B24: 2330431土地储备专项债券发行费用支出 | C24: 政府债务管理股 | D24: 土地储备专项债券发行费用支出 | E24: 0.05 | F24: 5.34 | G24: 5.39 | H24: 粤财债﹝2025﹞17号广东省财政厅关于下达2025年2月地方政府新增债券转贷资金的通知、江财M﹝2025﹞4号2025年到期土地储备专项债券发行费53926.4元，还本付息服务费502.4元（其中，下半年应付还本付息服务费0元，），发行费53424元。
A25: 21 | B25: 2320411国有土地使用权出让金债务付息支出 | C25: 政府债务管理股 | D25: 国有土地使用权出让金债务付息支出 | E25: 460.78 | F25: 265.74 | G25: 726.52 | H25: 江财M﹝2025﹞4号2025年到期国有土地使用权出让金债务利息28158973.2元，1-3月到期利息4607800.85元，4-6月到期利息2657425.75元，下半年应付利息20893746.6元。
A26: 22 | B26: 2320498其他地方自行试点项目收益专项债券付息支出 | C26: 政府债务管理股 | D26: 其他地方自行试点项目收益专项债券付息支出 | E26: 4145.38 | F26: 3181.58 | G26: 7326.96 | H26: 江财M﹝2025﹞4号2025年到期其他地方自行试点项目收益专项债券利息154855098.63元，1-3月到期利息41453848.63元，4-6月到期利息31815800元，下半年应付利息81585450元。
A27: 23 | B27: 2330498其他地方自行试点项目收益专项债券发行费用支出 | C27: 政府债务管理股 | D27: 其他地方自行试点项目收益专项债券发行费用支出 | E27: 0.73 | F27: 80.32 | G27: 81.05 | H27: 粤财债﹝2025﹞8号广东省财政厅关于下达2025年1月地方政府新增债券转贷资金的通知、粤财债﹝2025﹞18号广东省财政厅关于下达2025年2月地方政府新增债券转贷资金的通知、粤财债﹝2025﹞30号广东省财政厅关于下达2025年5月地方政府新增债券转贷资金的通知、江财M﹝2025﹞4号 2025年到期其他地方自行试点项目收益专项债券发行费810911.02元，还本付息服务费7743.02元（其中，下半年应付还本付息服务费427.23元，），发行费803168元。
A28: 24 | B28: 2320499其他政府性基金债务付息支出 | C28: 政府债务管理股 | D28: 其他政府性基金债务付息支出 | E28: 0.00 | F28: 9.12 | G28: 9.12 | H28: 江财M﹝2025﹞4号2025年到期其他政府性基金债务利息182400元，1-3月到期利息0元，4-6月到期利息91200元，下半年应付利息91200元。
A29: 25 | B29: 2290402其他政府性基金及对应专项债务收入安排的支出 | C29: 政府债务管理股 | D29: 恩平市存量政府投资项目 | E29: 0.00 | F29: 8700.00 | G29: 8700.00 | H29: 粤财债〔2025〕43号广东省财政厅关于下达2025年6月地方政府新增债券转贷资金的通知，用于化解政府拖欠企业账款专项债券的规范支出
A30: 26 | B30: 2290402其他政府性基金及对应专项债务收入安排的支出 | C30: 恩平市住房和城乡建设局 | D30: 广东省恩平市老旧小区改造项目（三期） | E30: 0.00 | F30: 1000.00 | G30: 1000.00 | H30: 粤财债﹝2025﹞30号广东省财政厅关于下达2025年5月地方政府新增债券转贷资金的通知
A31: 27 | B31: 2290402其他政府性基金及对应专项债务收入安排的支出 | C31: 恩平市城市管理和综合执法局 | D31: 广东省恩平市体育设施建设项目 | E31: 0.00 | F31: 3000.00 | G31: 3000.00 | H31: 粤财债﹝2025﹞30号广东省财政厅关于下达2025年5月地方政府新增债券转贷资金的通知
A32: 28 | B32: 2290402其他政府性基金及对应专项债务收入安排的支出 | C32: 恩平市水利局 | D32: 广东省恩平市2022年度水安全提升工程 | E32: 0.00 | F32: 2900.00 | G32: 2900.00 | H32: 粤财债﹝2025﹞30号广东省财政厅关于下达2025年5月地方政府新增债券转贷资金的通知
A33: 29 | B33: 2290402其他政府性基金及对应专项债务收入安排的支出 | C33: 恩平市水利局 | D33: 江门市西江潭江流域跨界重点支流综合治理工程（一期）项目（恩平项目区） | E33: 0.00 | F33: 600.00 | G33: 600.00 | H33: 粤财债﹝2025﹞30号广东省财政厅关于下达2025年5月地方政府新增债券转贷资金的通知
A34: 30 | B34: 2290402其他政府性基金及对应专项债务收入安排的支出 | C34: 恩平市农业农村局 | D34: 广东省恩平市乡村振兴百千万精品示范带典型村镇农业农村综合整治项目 | E34: 0.00 | F34: 2000.00 | G34: 2000.00 | H34: 粤财债﹝2025﹞30号广东省财政厅关于下达2025年5月地方政府新增债券转贷资金的通知
A35: 31 | B35: 2290402其他政府性基金及对应专项债务收入安排的支出 | C35: 恩平产业转移工业园管理委员会 | D35: 恩平工业园职教园区项目 | E35: 0.00 | F35: 2000.00 | G35: 2000.00 | H35: 粤财债﹝2025﹞18号广东省财政厅关于下达2025年2月地方政府新增债券转贷资金的通知
A36: 32 | B36: 2290402其他政府性基金及对应专项债务收入安排的支出 | C36: 恩平市土地储备中心 | D36: 恩平市平塘村周边地块二 | E36: 0.00 | F36: 6300.00 | G36: 6300.00 | H36: 粤财债﹝2025﹞17号广东省财政厅关于下达2025年2月地方政府新增债券转贷资金的通知
A37: 合计 | E37: =SUM(E5:E36) -> 35674.55 | F37: =SUM(F5:F36) -> 32339.98 | G37: =SUM(G5:G36) -> 68014.53

Sheet Sheet1 (hidden)
E1: 2000
E2: 3967.59
E3: 4230.2
E4: 56634.5
E5: 10532.6
E6: 10800
E7: 7874.94
E8: 68400
E9: 40800
E10: 2000
E11: 5798
E12: 39000
E13: 2400
E14: 28500
E15: 40000
E16: 42253.68
E17: 13800
E18: 8400
E19: 2400
E20: 6000
E21: 5400
E22: 27508.8
E23: 2744.3
E24: 4200
E25: 9000
E26: 2000
E27: 4800
E28: 1200
E29: 4675
E30: 7200
E31: 5450.24
E32: 13200
E33: 48751.43
E34: 3600
E35: 6462
E36: 6236.82
E37: 3600
E38: 3203.2
E39: 14313.65
E40: 7200
E41: 6424.89
E42: 43800
E43: 9209.02
E44: 5400
E45: 3299.46
E46: 35144.63
E47: 2965.73
E48: 29552.9
E49: 287058.54
